bitfinex/quotes_SOLUSD_20240530
["timestamp","ask_amount","ask_price","bid_price","bid_amount"]
[1717040836371,7.47,170.05,170.0,6.3748]
[1717040836698,2.176,170.04,170.0,6.3748]
[1717040837580,2.176,170.03,169.99,19.8665]
[1717040838407,2.176,170.04,169.99,19.8665]
[1717040838993,2.176,170.04,169.99,26.3104]
[1717040839698,2.1758,170.05,170.0,19.8664]
[1717040839994,2.1758,170.05,170.0,27.3364]
[1717040840290,2.1758,170.05,170.0,33.7502]
[1717040840871,2.1758,170.05,170.01,25.16]
[1717040841912,2.1757,170.06,170.02,31.6012]
[1717040842072,8.7006,170.11,170.03,27.336]
[1717040842073,2.1755,170.08,170.03,27.336]
[1717040842266,2.1755,170.08,170.03,33.7772]
[1717040842770,2.1755,170.08,170.04,7.47]
[1717040842968,2.1754,170.09,170.04,31.5533]
[1717040843169,2.1754,170.09,170.04,24.0833]
[1717040843490,2.1754,170.08,170.04,31.5533]
[1717040843701,4.3501,170.11,170.04,31.5533]
[1717040843871,2.1754,170.08,170.04,31.5533]
[1717040845594,2.1754,170.08,170.04,24.0833]
[1717040845892,2.1754,170.08,170.04,31.5533]
[1717040846264,2.1753,170.09,170.06,17.69]
[1717040846586,6.1367,170.16,170.06,24.2599]
[1717040846587,4.3496,170.13,170.06,24.2599]
[1717040846783,2.1753,170.09,170.06,24.2599]
[1717040848286,2.1754,170.08,170.06,24.2599]
[1717040851006,2.1754,170.08,170.04,31.5483]
[1717040851708,2.1754,170.08,170.04,24.0783]
[1717040852393,2.1755,170.07,170.04,24.0783]
[1717040853401,2.1757,170.06,170.01,9.6462]
[1717040853696,2.1757,170.06,170.01,8.8116]
[1717040854201,2.1757,170.06,170.02,17.69]
[1717040855002,2.1756,170.07,170.02,17.69]
[1717040856598,2.1756,170.07,170.02,19.8662]
[1717040862982,2.1756,170.07,170.02,2.1762]
[1717040863208,4.3506,170.09,170.01,2.1762]
[1717040863810,2.1757,170.06,170.01,2.1762]
[1717040864599,2.1758,170.05,170.0,2.1764]
[1717040865117,2.1759,170.04,169.99,27.3365]
[1717040865820,2.1761,170.03,169.98,2.1766]
[1717040866124,2.176,170.04,169.99,2.1765]
[1717040868998,2.176,170.04,169.99,19.8665]
[1717040869226,2.176,170.04,169.99,2.1765]
[1717040870122,2.176,170.04,170.0,2.1764]
[1717040870425,2.176,170.04,169.99,2.1765]
[1717040873299,2.176,170.03,169.99,2.1765]
[1717040874920,2.176,170.04,169.99,2.1765]
[1717040879438,2.1761,170.03,169.98,17.69]
[1717040879622,2.1761,170.03,169.98,27.3366]
[1717040880337,8.7033,170.05,169.96,18.4956974]
[1717040880633,7.47,170.01,169.96,18.4956974]
[1717040881426,2.1765,170.0,169.96,18.4956974]
[1717040883820,2.1763,170.01,169.96,28.1425974]
[1717040884029,2.1762,170.02,169.98,17.69]
[1717040884251,2.1762,170.02,169.98,25.16]
[1717040885510,2.1762,170.02,169.98,27.3367]
[1717040885934,2.1762,170.02,169.98,25.16]
[1717040887944,2.1763,170.01,169.98,25.16]
[1717040888334,2.1763,170.01,169.98,17.69]
[1717040894441,10.8798,170.04,169.96,25.9656974]
[1717040894442,8.7042,170.04,169.96,25.9656974]
[1717040894640,8.7042,170.04,169.96,0.8056974]
[1717040894641,2.1765,170.0,169.96,0.8056974]
[1717040898041,4.3523,170.03,169.97,2.1768]
[1717040898042,2.1763,170.01,169.97,2.1768]
[1717040898244,2.1763,170.01,169.96,20.6725974]
[1717040899044,2.1763,170.01,169.97,2.1768]
[1717040899345,2.1763,170.01,169.96,27.0496974]
[1717040900934,2.1763,170.01,169.97,2.1768]
[1717040901143,2.1762,170.02,169.97,2.1768]
[1717040902042,2.1763,170.01,169.97,2.1768]
[1717040903749,2.1763,170.01,169.96,34.5196974]
[1717040907031,13.5809,170.1,169.96,7.1827974]
[1717040907224,2.1766,169.99,169.96,0.8056974]
[1717040908854,2.1765,170.0,169.96,0.8056974]
[1717040909033,2.1766,169.99,169.96,0.8056974]
[1717040909234,2.1765,170.0,169.96,0.8056974]
[1717040910650,2.1766,169.99,169.96,0.8056974]
[1717040912831,2.1765,170.0,169.96,0.8056974]
[1717040920066,13.0562,170.04,169.96,0.8056974]
[1717040920067,2.1765,169.99,169.96,0.8056974]
[1717040920965,2.1765,170.0,169.96,0.8056974]
[1717040921641,4.3522,170.03,169.96,0.8056974]
[1717040922037,2.1765,170.0,169.96,0.8056974]
[1717040925546,2.1765,170.0,169.96,18.4956974]
[1717040925740,2.1765,170.0,169.97,6.5324]
[1717040927078,10.8787,170.06,169.98,23.8377]
[1717040927280,10.8787,170.06,169.99,13.6177]
[1717040927281,2.1762,170.02,169.99,13.6177]
[1717040929088,8.7022,170.08,169.99,23.8377]
[1717040929089,2.176,170.04,169.99,23.8377]
[1717040929363,2.176,170.04,170.0,13.6792]
[1717040929572,2.176,170.04,170.0,6.2092]
[1717040930259,2.1761,170.03,170.0,6.2092]
[1717040938665,2.1761,170.03,169.99,25.16]
[1717040938985,4.3512,170.07,170.02,6.1623]
[1717040939386,2.176,170.04,170.02,6.1623]
[1717040940783,2.176,170.03,170.02,6.1623]
[1717040941776,2.1759,170.04,170.02,6.1623]
[1717040941979,2.176,170.03,170.02,6.1623]
[1717040945416,2.1762,170.02,170.01,25.16]
[1717040945601,2.1762,170.02,170.01,17.69]
[1717040947323,2.1762,170.02,170.01,24.0852]
[1717040948111,2.1761,170.03,170.01,24.0852]
[1717040951121,4.3514,170.06,169.99,7.47]
[1717040951321,2.1762,170.02,169.99,25.16]
[1717040951620,2.1762,170.02,169.99,31.8236]
[1717040952812,2.1762,170.02,170.0,7.47]
[1717040953011,2.1761,170.03,170.0,31.6544]
[1717040953722,8.7022,170.08,170.02,13.9644]
[1717040954117,2.1759,170.04,170.02,13.9644]
[1717040955127,2.1759,170.04,170.02,31.6544]
[1717040955333,2.1757,170.06,170.03,25.16]
[1717040955506,4.3504,170.1,170.04,7.47]
[1717040955713,8.6996,170.13,170.05,7.47]
[1717040956005,4.3501,170.11,170.05,7.47]
[1717040956207,2.1755,170.07,170.05,7.47]
[1717040956712,2.1755,170.07,170.04,7.47]
[1717040959626,2.1755,170.07,170.04,25.16]
[1717040959826,2.1754,170.08,170.04,31.4178]
[1717040960009,2.1754,170.08,170.05,25.16]
[1717040961209,2.1753,170.09,170.06,7.47]
[1717040963633,2.1753,170.09,170.03,2.176]
[1717040963634,2.1753,170.09,170.07,31.4184]
[1717040964729,2.1753,170.09,170.07,23.9484]
[1717040965340,2.1753,170.09,170.05,17.69]
[1717040965511,2.1753,170.09,170.05,25.16]
[1717040965944,2.1754,170.08,170.05,17.69]
[1717040966113,2.1754,170.08,170.05,25.16]
[1717040967335,2.1753,170.09,170.05,25.16]
[1717040970135,2.1753,170.09,170.05,31.5265]
[1717040970635,2.1753,170.09,170.06,17.69]
[1717040975642,2.1754,170.08,170.04,17.69]
[1717040975841,6.0811,170.13,170.01,6.1856]
[1717040976146,2.1759,170.04,169.98,2.1766]
[1717040976338,2.1759,170.04,169.99,7.47]
[1717040976541,4.3509,170.08,169.99,7.47]
[1717040976542,2.1758,170.05,169.99,7.47]
[1717040976730,2.1759,170.04,169.99,25.16]
[1717040976935,2.1758,170.05,169.99,25.16]
[1717040977447,2.1758,170.05,169.99,27.3365]
[1717040977648,6.0811,170.13,169.99,25.16]
[1717040977825,2.1756,170.07,170.02,7.47]
[1717040978026,2.1756,170.07,170.02,25.16]
[1717040978347,2.1756,170.07,170.03,25.16]
[1717040979244,2.1754,170.08,170.03,25.16]
[1717040979424,2.1754,170.08,170.05,17.69]
[1717040979624,2.1754,170.08,170.03,25.16]
[1717040979838,2.1754,170.08,170.02,7.47]
[1717040980427,2.1754,170.08,170.02,9.6461]
[1717040980649,2.1754,170.08,170.02,27.3361]
[1717040981051,2.1754,170.08,170.03,7.47]
[1717040981244,2.1754,170.08,170.03,25.16]
[1717040983360,2.1753,170.09,170.03,25.16]
[1717040983653,2.1754,170.08,170.03,25.16]
[1717040986045,2.1754,170.08,170.04,25.16]
[1717040988756,2.1753,170.09,170.04,25.16]
[1717040992159,2.1753,170.09,170.05,25.16]
[1717040992769,2.1753,170.09,170.06,7.47]
[1717040993138,2.1752,170.1,170.06,7.47]
[1717040994355,2.1753,170.09,170.06,7.47]
[1717040994764,2.1753,170.09,170.05,25.16]
[1717040997148,6.0811,170.13,170.07,2.1755]
[1717040997370,7.47,170.12,170.06,19.8656]
[1717040997664,7.47,170.12,170.06,27.3356]
[1717040998242,2.1752,170.1,170.06,25.16]
[1717040998667,2.175,170.11,170.06,25.16]
[1717040998852,2.175,170.11,170.08,17.69]
[1717041000469,2.1751,170.1,170.08,17.69]
[1717041000671,2.1753,170.09,170.07,17.69]
[1717041003570,2.1752,170.1,170.07,17.69]
[1717041003869,2.1751,170.11,170.07,17.69]
[1717041004872,2.1752,170.1,170.07,17.69]
[1717041005370,2.175,170.11,170.07,17.69]
[1717041005671,2.175,170.11,170.07,25.16]
[1717041006771,2.1752,170.1,170.07,25.16]
[1717041008270,2.1751,170.11,170.07,25.16]
[1717041008641,2.1751,170.11,170.09,17.69]
[1717041008842,2.1749,170.12,170.09,17.69]
[1717041010371,2.1743,170.17,170.11,25.16]
[1717041010568,71.60538494,170.19,170.09,17.69]
[1717041010768,2.175,170.12,170.09,17.69]
[1717041010973,7.47,170.14,170.09,17.69]
[1717041010974,2.175,170.11,170.09,17.69]
[1717041011454,10.8723,170.16,170.08,17.69]
[1717041011455,2.1747,170.14,170.08,17.69]
[1717041011656,2.1747,170.14,170.1,25.16]
[1717041011846,2.1748,170.13,170.1,25.16]
[1717041012674,2.1748,170.13,170.1,17.69]
[1717041013172,2.1749,170.12,170.1,17.69]
[1717041013549,2.1749,170.12,170.05,17.69]
[1717041013869,2.1749,170.12,170.08,17.69]
[1717041014673,2.1749,170.12,170.07,17.69]
[1717041014877,2.175,170.11,170.07,17.69]
[1717041015168,2.1751,170.11,170.07,17.69]
[1717041015771,2.1749,170.12,170.07,17.69]
[1717041016155,2.1749,170.12,170.07,24.2071]
[1717041016555,2.1749,170.12,170.07,31.6771]
[1717041016755,2.1749,170.12,170.09,17.69]
[1717041017274,2.1749,170.12,170.09,25.16]
[1717041017657,2.1748,170.13,170.09,25.16]
[1717041017858,2.1748,170.13,170.09,31.4488]
[1717041023085,2.1747,170.14,170.09,31.4488]
[1717041023583,2.1747,170.14,170.09,31.3312]
[1717041024165,2.1747,170.14,170.09,25.16]
[1717041024366,2.1748,170.13,170.11,17.69]
[1717041024566,2.1746,170.14,170.11,17.69]
[1717041024976,2.1748,170.13,170.11,17.69]
[1717041025184,2.1749,170.12,170.11,17.69]
[1717041025784,2.1748,170.13,170.11,17.69]
[1717041026988,2.1749,170.12,170.11,17.69]
[1717041029174,13.0452,170.18,170.11,17.69]
[1717041029492,2.1748,170.13,170.11,17.69]
[1717041031500,4.3482,170.19,170.13,17.69]
[1717041031671,2.1745,170.15,170.13,17.69]
[1717041032163,2.1746,170.14,170.13,17.69]
[1717041032369,2.1745,170.15,170.13,17.69]
[1717041033292,2.1746,170.14,170.08,17.69]
[1717041033491,2.1746,170.14,170.1,17.69]
[1717041033671,2.1746,170.14,170.1,24.1913]
[1717041033873,2.1745,170.15,170.1,24.1913]
[1717041034179,2.1745,170.15,170.12,17.69]
[1717041035063,10.8691,170.21,170.14,17.69]
[1717041035283,2.1742,170.18,170.14,17.69]
[1717041035469,22.056,170.25,170.14,17.69]
[1717041035791,7.47,170.22,170.16,25.16]
[1717041036298,2.1739,170.2,170.16,25.16]
[1717041036476,7.47,170.22,170.16,25.16]
[1717041037003,2.1738,170.21,170.16,25.16]
[1717041037667,2.1738,170.21,170.17,17.69]
[1717041039009,4.3459,170.28,170.16,17.69]
[1717041039201,7.47,170.25,170.19,25.16]
[1717041039499,9.6433,170.25,170.2,1.17331955]
[1717041040077,2.1733,170.25,170.19,25.16]
[1717041040268,2.1734,170.24,170.2,17.69]
[1717041042999,9.6433,170.25,170.2,17.69]
[1717041043380,2.1733,170.25,170.2,17.69]
[1717041045206,2.1733,170.25,170.18,17.69]
[1717041045377,2.1733,170.25,170.2,17.69]
[1717041046573,418.48062992,170.44,170.23,25.16]
[1717041046574,21.3914,170.34,170.23,25.16]
[1717041046907,9.6427,170.29,170.23,25.16]
[1717041047207,2.173,170.27,170.23,17.69]
[1717041047587,2.173,170.27,170.22,7.47]
[1717041047787,2.173,170.27,170.23,17.69]
[1717041047980,9.643,170.27,170.2,17.69]
[1717041048190,2.1731,170.26,170.21,17.69]
[1717041048902,11.8159,170.28,170.15,6.5233]
[1717041049119,7.47,170.23,170.18,17.69]
[1717041049615,9.6432,170.25,170.2,17.69]
[1717041049782,6.5179,170.3,170.2,31.6264]
[1717041049985,7.47,170.27,170.22,24.1564]
[1717041050283,9.6427,170.29,170.24,17.69]
[1717041050486,9.6428,170.28,170.24,17.69]
[1717041051214,9.6428,170.28,170.23,17.69]
[1717041052978,6.4675,170.32,170.21,17.69]
[1717041053178,4.3455,170.29,170.21,17.69]
[1717041053390,2.1732,170.26,170.21,17.69]
[1717041054202,2.1732,170.26,170.2,17.69]
[1717041054582,2.1732,170.26,170.19,7.47]
[1717041054778,2.1733,170.25,170.19,25.16]
[1717041055182,4.3455,170.29,170.19,25.16]
[1717041056280,2.1733,170.25,170.19,25.16]
[1717041057905,6.5193,170.27,170.14,23.8616]
[1717041058206,6.5193,170.27,170.17,25.16]
[1717041058207,2.1736,170.23,170.17,25.16]
[1717041060515,4.3464,170.26,170.17,17.69]
[1717041060811,2.1737,170.21,170.15,25.16]
[1717041061218,2.1737,170.21,170.15,17.69]
[1717041061791,2.1739,170.2,170.15,17.69]
[1717041062110,4.3468,170.24,170.14,17.69]
[1717041062311,4.3473,170.22,170.14,17.69]
[1717041062510,2.1741,170.18,170.11,2.175]
[1717041062810,2.1741,170.18,170.12,7.47]
[1717041063190,2.1741,170.18,170.13,17.69]
[1717041063905,2.1741,170.18,170.12,17.69]
[1717041064125,2.174,170.2,170.14,7.47]
[1717041064327,2.1738,170.21,170.15,17.69]
[1717041064492,2.1738,170.21,170.15,25.16]
[1717041064692,2.1738,170.21,170.16,7.47]
[1717041064905,2.1737,170.22,170.16,7.47]
[1717041065596,2.1737,170.21,170.16,7.47]
[1717041066900,2.1738,170.21,170.16,25.16]
[1717041069706,2.1736,170.22,170.16,25.16]
[1717041070125,2.1735,170.23,170.17,17.69]
[1717041070429,2.1735,170.23,170.18,7.47]
[1717041071215,2.1735,170.23,170.17,25.16]
[1717041071407,9.6434,170.24,170.17,27.3342]
[1717041071909,2.1734,170.24,170.19,17.69]
[1717041072114,2.1734,170.24,170.19,25.16]
[1717041072307,2.1734,170.24,170.19,31.1926]
[1717041072626,2.1734,170.24,170.19,13.5026]
[1717041072825,2.1734,170.24,170.18,25.16]
[1717041073591,4.3458,170.28,170.2,17.69]
[1717041073811,2.1732,170.25,170.2,17.69]
[1717041074013,2.1732,170.25,170.2,23.838]
[1717041074397,2.1731,170.26,170.2,31.308]
[1717041074909,2.1732,170.25,170.2,31.308]
[1717041076109,2.1735,170.24,170.18,17.69]
[1717041077121,4.3464,170.26,170.16,6.1693]
[1717041077307,4.3464,170.26,170.16,31.3293]
[1717041078496,2.1737,170.22,170.16,31.3293]
[1717041079529,4.3464,170.26,170.16,31.3293]
[1717041079826,4.3464,170.26,170.18,17.69]
[1717041080024,2.1734,170.24,170.18,17.69]
[1717041080403,2.1734,170.24,170.19,7.47]
[1717041081423,2.1735,170.23,170.18,25.16]
[1717041082124,6.5193,170.27,170.18,25.16]
[1717041082125,2.1734,170.24,170.18,25.16]
[1717041082810,2.1734,170.24,170.19,7.47]
[1717041083912,2.1735,170.23,170.19,7.47]
[1717041084312,2.1735,170.23,170.18,25.16]
[1717041085237,2.1735,170.23,170.18,17.69]
[1717041085537,2.1735,170.23,170.18,25.16]
[1717041085712,2.1735,170.23,170.18,17.69]
[1717041087129,2.1735,170.23,170.18,25.16]
[1717041088634,2.1738,170.21,170.17,17.69]
[1717041088942,2.1738,170.21,170.16,7.47]
[1717041089119,2.1738,170.21,170.16,17.69]
[1717041089308,2.1739,170.2,170.12,8.4683]
[1717041089639,2.1739,170.2,170.13,2.1748]
[1717041089835,2.1738,170.21,170.16,7.47]
[1717041090045,2.1738,170.21,170.16,17.69]
[1717041090711,2.1739,170.2,170.16,17.69]
[1717041090907,15.2156,170.22,170.14,17.69]
[1717041091134,12.9175,170.24,170.14,25.16]
[1717041091433,12.9175,170.24,170.14,17.69]
[1717041091434,2.174,170.2,170.14,17.69]
[1717041091740,2.174,170.19,170.14,17.69]
[1717041092033,2.1743,170.17,170.12,17.69]
[1717041092239,4.3473,170.22,170.14,17.69]
[1717041092407,9.644,170.19,170.14,17.69]
[1717041092607,2.174,170.19,170.14,25.16]
[1717041093224,2.1739,170.2,170.14,25.16]
[1717041094043,6.3972,170.24,170.16,25.16]
[1717041094228,2.1736,170.22,170.16,25.16]
[1717041094636,2.1734,170.24,170.16,25.16]
[1717041094836,9.6434,170.24,170.19,17.69]
[1717041095657,2.1734,170.24,170.19,25.16]
[1717041096333,6.4244,170.29,170.2,25.16]
[1717041096637,2.1732,170.25,170.2,25.16]
[1717041097039,2.1732,170.25,170.2,17.69]
[1717041097351,2.1734,170.24,170.2,17.69]
[1717041097738,2.1734,170.24,170.18,25.16]
[1717041098625,2.1735,170.23,170.18,17.69]
[1717041099936,2.1735,170.23,170.17,17.69]
[1717041101060,2.1735,170.23,170.16,17.69]
[1717041101447,2.1736,170.22,170.16,17.69]
[1717041102355,2.1737,170.21,170.15,24.2678]
[1717041102861,2.1737,170.21,170.15,17.69]
[1717041103158,4.3465,170.26,170.15,17.69]
[1717041104064,2.1737,170.22,170.15,17.69]
[1717041106253,4.3468,170.24,170.14,17.69]
[1717041106564,6.4904,170.23,170.12,9.6448]
[1717041106865,2.1738,170.21,170.12,27.3348]
[1717041107366,2.1738,170.21,170.12,19.8648]
[1717041107541,2.1738,170.21,170.12,27.3348]
[1717041107737,2.1738,170.21,170.12,19.8648]
[1717041108057,6.4904,170.23,170.12,19.8648]
[1717041108058,2.1739,170.2,170.12,27.3348]
[1717041111843,2.1739,170.2,170.12,25.16]
[1717041112592,2.1738,170.21,170.12,27.3349]
[1717041113051,10.8376,170.23,170.12,17.69]
[1717041113241,2.1739,170.2,170.12,17.69]
[1717041114480,2.1739,170.2,170.11,17.69]
[1717041114661,2.1739,170.2,170.11,25.16]
[1717041115172,2.1739,170.2,170.15,7.47]
[1717041115349,2.1739,170.2,170.12,17.69]
[1717041115350,2.1738,170.21,170.16,7.47]
[1717041115864,9.6438,170.21,170.15,7.47]
[1717041116174,2.1739,170.2,170.15,7.47]
[1717041116472,18.4419,170.18,170.08,2.1753]
[1717041116675,7.47,170.16,170.1,7.47]
[1717041116881,7.47,170.14,170.03,7.02652395]
[1717041117062,7.47,170.14,170.08,7.47]
[1717041117669,7.47,170.13,170.07,7.47]
[1717041119980,6.4336,170.15,170.03,17.69]
[1717041120169,2.175,170.12,170.05,7.47]
[1717041120758,2.175,170.12,170.04,7.47]
[1717041121675,2.175,170.12,170.05,7.47]
[1717041123764,2.175,170.12,170.03,19.866]
[1717041123967,4.3494,170.14,170.01,2.1763]
[1717041124280,2.1752,170.1,170.04,7.47]
[1717041125270,4.3494,170.14,170.04,7.47]
[1717041125271,2.1751,170.11,170.04,7.47]
[1717041126372,2.1752,170.1,170.04,7.47]
[1717041127182,2.1752,170.1,170.05,7.47]
[1717041127375,8.7281,170.1,170.05,7.47]
[1717041127957,25.0055,170.1,170.05,7.47]
[1717041128160,25.0055,170.1,170.04,7.47]
[1717041128890,25.0055,170.1,170.0,19.8664]
[1717041129091,25.0055,170.1,170.03,7.47]
[1717041130783,25.0055,170.1,170.04,7.47]
[1717041131164,22.8303,170.1,170.04,7.47]
[1717041131657,22.8303,170.1,170.01,19.8663]
[1717041131885,22.8303,170.1,170.04,7.47]
[1717041132073,25.0055,170.1,170.01,19.8663]
[1717041132268,16.2774,170.1,170.01,17.69]
[1717041132480,2.1754,170.08,169.99,17.69]
[1717041132679,2.1753,170.09,170.0,2.1764]
[1717041132875,2.1753,170.09,170.03,7.47]
[1717041133258,18.4526,170.1,170.03,7.47]
[1717041133791,18.4526,170.1,170.04,7.47]
[1717041136193,8.2011,170.09,170.01,17.69]
[1717041136391,8.2011,170.09,170.03,7.47]
[1717041136797,8.2011,170.09,170.02,7.47]
[1717041137294,6.0257,170.09,170.02,7.47]
[1717041137472,6.0257,170.09,170.01,17.69]
[1717041137788,6.0257,170.09,170.02,7.47]
[1717041138104,6.0257,170.09,170.03,7.47]
[1717041138592,8.201,170.09,170.03,7.47]
[1717041138801,8.201,170.09,169.98,0.7274304]
[1717041138802,7.47,170.05,169.98,0.7274304]
[1717041138977,2.1756,170.07,170.0,7.47]
[1717041139178,2.1757,170.06,170.0,7.47]
[1717041139586,2.1757,170.06,169.99,7.47]
[1717041139780,2.1757,170.06,169.98,8.1974304]
[1717041139985,2.1761,170.03,169.98,0.7274304]
[1717041140201,28.8774,170.02,169.98,0.7274304]
[1717041142206,6.494,170.01,169.98,0.7274304]
[1717041142387,22.3998,170.01,169.98,0.7274304]
[1717041142782,7.47,170.0,169.98,0.7274304]
[1717041143497,22.3998,170.01,169.98,0.7274304]
[1717041144387,22.2859,170.0,169.98,0.7274304]
[1717041145915,6.2451,170.0,169.98,0.7274304]
[1717041147107,22.5112,169.99,169.98,0.7274304]
[1717041147308,24.6877,169.99,169.98,0.7274304]
[1717041149430,29.0408,169.99,169.98,0.7274304]
[1717041150215,24.6877,169.99,169.98,0.7274304]
[1717041150730,22.5112,169.99,169.98,0.7274304]
[1717041150914,6.5527,170.01,169.98,0.7274304]
[1717041151114,7.47,169.99,169.98,0.7274304]
[1717041151999,6.5527,170.01,169.98,0.7274304]
[1717041153796,18.1292,170.02,169.98,0.7274304]
[1717041155605,2.1763,170.02,169.98,0.7274304]
[1717041159224,2.1763,170.01,169.98,0.7274304]
[1717041164421,2.1762,170.02,169.98,0.7274304]
[1717041169006,2.1763,170.01,169.98,0.7274304]
[1717041169408,2.1762,170.02,169.98,0.7274304]
[1717041176425,2.1761,170.03,169.98,0.7274304]
[1717041176634,9.6461,170.03,169.99,6.2724]
[1717041178634,2.1762,170.02,169.99,6.2724]
[1717041179429,2.1762,170.02,169.98,0.7274304]
[1717041182436,2.1761,170.03,169.98,0.7274304]
[1717041182738,2.1761,170.03,169.98,7.2139304]
[1717041185741,2.1762,170.02,169.98,7.2139304]
[1717041186339,2.1761,170.03,169.98,7.2139304]
[1717041187130,12.58267888,170.09,169.99,7.47]
[1717041187442,4.3506,170.09,170.0,7.47]
[1717041187630,2.1757,170.06,170.0,7.47]
[1717041189049,2.1755,170.07,169.98,24.4930304]
[1717041189221,95.96200091,170.1,170.02,7.47]
[1717041189927,7.47,170.07,170.01,7.47]
[1717041193163,2.1752,170.1,170.02,7.47]
[1717041193824,2.1752,170.1,170.03,7.47]
[1717041194023,2.1752,170.1,170.02,7.47]
[1717041195847,2.1752,170.1,170.03,7.47]
[1717041197336,2.1751,170.11,170.03,7.47]
[1717041199745,8.5799,170.13,170.03,7.47]
[1717041200051,2.1747,170.14,170.05,7.47]
[1717041200674,2.1748,170.13,170.05,7.47]
[1717041201661,92.08739859,170.15,170.05,7.47]
[1717041201662,2.1746,170.15,170.07,7.47]
[1717041202128,2.1744,170.16,170.07,7.47]
[1717041202634,2.1743,170.17,170.08,7.47]
[1717041203041,2.1744,170.16,170.08,7.47]
[1717041203649,2.1745,170.15,170.08,7.47]
[1717041204051,111.73079859,170.21,170.05,17.69]
[1717041204354,7.47,170.13,170.07,7.47]
[1717041204944,7.47,170.12,170.04,6.5953]
[1717041205131,7.47,170.12,170.06,7.47]
[1717041205850,2.1746,170.15,170.05,7.47]
[1717041207238,2.1746,170.15,170.06,7.47]
[1717041207443,7.47,170.12,170.07,7.47]
[1717041207639,110.05006391,170.19,170.07,7.47]
[1717041207863,2.1744,170.16,170.07,7.47]
[1717041209054,105.70196391,170.19,170.07,25.16]
[1717041209259,7.47,170.16,170.11,7.47]
[1717041209459,7.47,170.16,170.1,7.47]
[1717041209638,2.1741,170.18,170.1,7.47]
[1717041209838,2.1743,170.17,170.09,7.47]
[1717041218769,2.1744,170.16,170.09,7.47]
[1717041219983,102.10607627,170.2,170.08,6.1074]
[1717041220274,102.10607627,170.2,170.09,7.47]
[1717041220275,2.1743,170.17,170.09,7.47]
[1717041222367,2.1744,170.16,170.09,7.47]
[1717041223694,2.1743,170.17,170.1,7.47]
[1717041224385,2.1743,170.17,170.08,6.1074]
[1717041224676,2.1744,170.16,170.1,7.47]
[1717041227976,2.1744,170.16,170.08,6.1074]
[1717041228172,2.1743,170.17,170.08,6.1074]
[1717041228550,2.1744,170.16,170.08,6.1074]
[1717041228757,2.1746,170.15,170.08,6.1074]
[1717041229872,10.8704,170.19,170.04,8.5112]
[1717041229873,2.1747,170.14,170.04,8.5112]
[1717041230174,2.1747,170.14,170.05,7.47]
[1717041230376,2.1746,170.15,170.05,9.6458]
[1717041230748,2.175,170.12,170.04,6.3353]
[1717041230953,4.3491,170.15,170.04,6.3353]
[1717041231148,2.1751,170.11,170.04,6.3353]